[Event "CCT Airthings Masters Play-In 2023"]
[Site "Online"]
[Date "2023.02.03"]
[Round "1"]
[White "Cardoso Cardoso, Jose Gabriel"]
[Black "GadimbayliA"]
[Result "*"]
[ECO "A13"]
[WhiteElo "2498"]
[BlackElo "2590"]
[Annotator "TA"]
[PlyCount "23"]
[EventDate "2023.02.03"]
[EventType "swiss"]
[EventCountry "NET"]
[SourceTitle "playchess.com"]
[Source "ChessBase"]
[SourceQuality "1"]
[TimeControl "600+2"]

{[%evp 16,23,0,0,0,0,0,-8,12,4]} 1. Nf3 {[%emt 0:00:05]} d5 {[%emt 0:00:06]} 2. e3 {[%emt 0:00:03]} Nf6 {[%emt 0:00:01]} 3. c4 {[%emt 0:00:02]} e6 {[%emt 0:00:05]} 4. b3 {[%emt 0:00:02]} c5 {[%emt 0:00:12]} 5. Bb2 {[%emt 0:00:26]} Nc6 {[%emt 0:00:03]} 6. cxd5 {[%emt 0:00:04]} Nxd5 {[%emt 0:00:02]} 7. Be2 {[%emt 0:00:09]} Be7 {[%emt 0:00:24]} 8. O-O {[%emt 0:00:14]} O-O {[%emt 0:00:02]} 9. Nc3 {[%emt 0:00:34] The position is equal.} Nxc3 {[%emt 0:00:19] has lost popularity (9...b6). A13: English Opening: 1...e6.} 10. Bxc3 {[%emt 0:00:02]} b6 {[%emt 0:00:01]} 11. d4 {[%emt 0:00:05]} Bf6 {[%emt 0:02:15] [#]} 12. Ne5 $146 {[%emt 0:01:14] Not much happened in this game.   Weighted Error Value: White=0.00 (flawless) /Black=0.06 (flawless)} ({Predecessor:} 12. Rc1 cxd4 13. Nxd4 Nxd4 14. Bxd4 Bxd4 15. Qxd4 Qxd4 16. exd4 Bb7 17. Rc7 Rab8 18. Rfc1 {½-½ Topalov,V (2761)-Nakamura,H (2787) Paris GCT blitz 2016 (15)}) *

[Event "CCT Airthings Masters Play-In 2023"]
[Site "Online"]
[Date "2023.02.03"]
[Round "1"]
[White "Gajuchess"]
[Black "Parhamov"]
[Result "*"]
[ECO "A11"]
[WhiteElo "2491"]
[BlackElo "2641"]
[Annotator "TA"]
[PlyCount "46"]
[EventDate "2023.02.03"]
[EventType "swiss"]
[EventCountry "NET"]
[SourceTitle "playchess.com"]
[Source "ChessBase"]
[SourceQuality "1"]
[TimeControl "600+2"]

{[%evp 18,46,30,45,56,53,90,35,37,-16,-5,2,-8,0,0,-26,-9,-19,0,-14,-9,-16,-1,-134,-34,-29,-41,-106,8,5,29]} 1. Nf3 {[%emt 0:02:21]} d5 {[%emt 0:00:09]} 2. g3 {[%emt 0:00:01]} c6 {[%emt 0:00:04]} 3. Bg2 {[%emt 0:00:01]} Bg4 {[%emt 0:00:01]} 4. O-O {[%emt 0:00:02]} Nd7 {[%emt 0:00:01]} 5. d3 {[%emt 0:00:05]} e6 {[%emt 0:00:04]} 6. c4 {[%emt 0:00:03]} Bd6 {[%emt 0:00:02]} 7. Nc3 {[%emt 0:00:05]} Ne7 {[%emt 0:00:02]} 8. h3 {[%emt 0:00:03]} Bh5 {[%emt 0:00:01]} 9. cxd5 {[%emt 0:00:03]} exd5 {[%emt 0:00:03]} 10. e4 {[%emt 0:00:02] [#]} d4 $146 {[%emt 0:00:07] A11: English Opening: 1...c6.} ({Predecessor:} 10... O-O 11. g4 Bg6 12. Nh4 Nb6 13. a4 a5 14. Qb3 Bb4 15. f4 f6 16. Nxg6 Nxg6 17. Be3 Kh8 18. Na2 {½-½ Donchenko,A (2636)-Arjun,K (2526) Elllobregat op 3rd 2022 (4)}) 11. Ne2 {[%emt 0:00:04]} c5 {[%emt 0:00:02]} 12. Nh4 {[%emt 0:00:36]} (12. g4 $16 Bg6 13. b4) 12... f6 $14 {[%emt 0:00:11] White is slightly better.} 13. f4 {[%emt 0:00:04]} (13. Nf5 $14 Nxf5 14. exf5) 13... O-O {[%emt 0:00:04]} 14. g4 {[%emt 0:00:32]} Bf7 {[%emt 0:00:03]} 15. b3 {[%emt 0:00:18]} a5 {[%emt 0:00:14][%cal Oa5a4]} 16. a4 {[%emt 0:00:16]} Ra6 {[%emt 0:00:06]} 17. Bd2 {[%emt 0:00:04]} Nb8 {[%emt 0:00:18]} 18. Rc1 {[%emt 0:00:03][%cal Oe4e5]} Nbc6 {[%emt 0:00:01]} 19. Ng3 {[%emt 0:00:02]} Rb6 {[%emt 0:00:03]} 20. Rc4 {[%emt 0:00:02]} Re8 {[%emt 0:00:30]} ({Black should play} 20... Bxc4 $17 21. bxc4 g5) 21. e5 {[%emt 0:00:15]} fxe5 {[%emt 0:00:01]} 22. f5 {[%emt 0:00:03] [#]} (22. fxe5 $15 Bxe5 23. Rxc5) 22... e4 {[%emt 0:00:01]} (22... Bxc4 23. bxc4 Rf8 24. g5 $14) (22... Nd5 $1 $17 23. g5 Nf4) 23. Nxe4 $11 {[%emt 0:00:04][%cal Of5f6] aiming for f6!} Nd5 $1 {[%emt 0:00:05] Weighted Error Value: White=0.32/Black=0.31} (23... Bxc4 24. dxc4 Rf8 25. f6 Rxf6 26. Nxf6+ gxf6 27. Rxf6 $16) *

[Event "CCT Airthings Masters Play-In 2023"]
[Site "Online"]
[Date "2023.02.03"]
[Round "1"]
[White "Rakhmanov_Aleksandr"]
[Black "exoticprincess"]
[Result "1/2-1/2"]
[ECO "D13"]
[WhiteElo "2472"]
[BlackElo "2635"]
[Annotator "TA"]
[PlyCount "46"]
[EventDate "2023.02.03"]
[EventType "swiss"]
[EventCountry "NET"]
[SourceTitle "playchess.com"]
[Source "ChessBase"]
[SourceQuality "1"]
[TimeControl "600+2"]

{[%evp 16,46,34,9,24,18,27,27,41,35,50,35,133,126,163,41,61,37,40,43,37,16,16,16,16,16,17,18,18,18,27,14,31]} 1. c4 {[%emt 0:00:10]} c6 {[%emt 0:00:15]} 2. d4 {[%emt 0:00:06]} d5 {[%emt 0:00:03]} 3. cxd5 {[%emt 0:00:02]} cxd5 {[%emt 0:00:01]} 4. Nf3 {[%emt 0:00:00]} Nc6 {[%emt 0:00:03]} 5. Nc3 {[%emt 0:00:02]} Nf6 {[%emt 0:00:02]} 6. Bf4 {[%emt 0:00:03]} e6 {[%emt 0:00:01]} 7. e3 {[%emt 0:00:02]} Be7 {[%emt 0:00:02]} 8. Bd3 {[%emt 0:00:02]} O-O {[%emt 0:00:01]} 9. Ne5 {[%emt 0:00:04] 9.h3 is setting a new trend.} Qb6 {[%emt 0:00:09] D13: Slav Defence: Exchange variation without ...Bf5.} 10. Qe2 {[%emt 0:00:11]} Bd7 {[%emt 0:00:06]} 11. O-O {[%emt 0:00:08]} Rfc8 {[%emt 0:00:03] White has an edge.} 12. Bg5 {[%emt 0:00:10]} Be8 {[%emt 0:00:06] [#]} (12... Nxe5 $2 13. dxe5 Qd8 14. exf6 $18) 13. f4 $146 {[%emt 0:00:02]} ({Predecessor:} 13. Rfc1 Qd8 14. Nxc6 Rxc6 15. Rc2 {½-½ Duenas,A (1987)-Kafka,G (2122) Rilton Cup 34th 2004 (2)}) 13... Nb4 {[%emt 0:00:09] [#]} (13... Qd8 $1 $14) 14. Bb1 $1 $16 {[%emt 0:00:04]} Qd8 {[%emt 0:00:14] [#]} 15. a3 {[%emt 0:00:18]} (15. f5 $1 $18 {[%cal Rf5e6]}) 15... Nc6 $14 {[%emt 0:00:05]} 16. Rf3 {[%emt 0:00:10] White has more active pieces.} (16. Qf2 $5 {[%cal Rf4f5]}) 16... g6 {[%emt 0:00:06]} 17. Bd3 {[%emt 0:00:22]} Nxe5 {[%emt 0:00:28]} 18. fxe5 {[%emt 0:00:22]} (18. dxe5 {simplifies} Nd7 19. Bxe7 Qxe7 20. e4) 18... Ne4 {[%emt 0:00:02][%mdl 64] Discovered Attack} 19. Bxe7 {[%emt 0:00:15]} ({But not} 19. Nxe4 dxe4 20. Bxe7 exd3 21. Bxd8 dxe2 $17) 19... Nxc3 {[%emt 0:00:01] Black is weak on the dark squares} 20. Bxd8 {[%emt 0:00:05]} Nxe2+ {[%emt 0:00:01]} 21. Bxe2 {[%emt 0:00:00] And now Be7 would win.} Rxd8 {[%emt 0:00:01]} 22. Rff1 {[%emt 0:00:26]} Rdc8 {[%emt 0:00:04]} 23. Rfc1 {[%emt 0:00:01] Wards off Rc2} Kf8 {[%emt 0:00:02] Weighted Error Value: White=0.18 (very precise) /Black=0.16 (very precise)} 1/2-1/2

[Event "CCT Airthings Masters Play-In 2023"]
[Site "Online"]
[Date "2023.02.03"]
[Round "1"]
[White "sergoy"]
[Black "ChristopherYoo"]
[Result "0-1"]
[ECO "D38"]
[WhiteElo "2465"]
[BlackElo "2634"]
[Annotator "TA"]
[PlyCount "162"]
[EventDate "2023.02.03"]
[EventType "swiss"]
[EventCountry "NET"]
[SourceTitle "playchess.com"]
[Source "ChessBase"]
[SourceQuality "1"]
[TimeControl "600+2"]

{[%evp 11,161,10,6,4,6,14,18,11,25,0,3,0,0,0,0,-37,0,16,16,6,13,13,23,9,10,13,28,8,45,43,45,43,37,0,61,-10,102,95,122,112,124,107,109,83,84,47,45,0,0,0,32,0,0,0,6,12,45,48,48,56,50,0,0,0,0,0,0,-177,-184,-183,-183,-183,-102,-85,-93,-88,-77,-125,-116,-355,-342,-430,-430,-430,-430,-410,-377,-1030,-1008,-970,-967,-5393,-5899,-6403,-5847,-2556,-3594,-12832,-12832,-12831,-12832,-12833,-12831,-12840,-12840,-12845,-12845,-12845,-12845,-12845,-12845,-12846,-12846,-12847,-12847,-12848,-12847,-12850,-12845,-12849,-12845,-12846,-12846,-12847,-12847,-12849,-12847,-12848,-12847,-12848,-12848,-12849,-12848,-12849,-12848,-12849,-12849,-29997,-29998,-29998,-29991,-29991,-12850,-29994,-29994,-29994,-12850,-27999,-27999,-27999,-27999,-27999]} 1. d4 {[%emt 0:00:04]} Nf6 {[%emt 0:00:09]} 2. c4 {[%emt 0:00:01]} e6 {[%emt 0:00:00]} 3. Nf3 {[%emt 0:00:00]} d5 {[%emt 0:00:01]} 4. Nc3 {[%emt 0:00:06]} Bb4 {[%emt 0:00:02]} 5. Qa4+ {[%emt 0:00:02]} Nc6 {[%emt 0:00:02]} 6. e3 {[%emt 0:00:00]} O-O {[%emt 0:00:01]} 7. Qc2 {[%emt 0:00:01] D38: Queen's Gambit Declined: Ragozin Defence (4 Nf3 Bb4).} Re8 {[%emt 0:00:09]} 8. Bd2 {[%emt 0:00:07]} Bf8 {[%emt 0:00:59]} 9. a3 {[%emt 0:00:01] The position is equal.} a6 {[%emt 0:00:40]} 10. h3 {[%emt 0:00:04]} h6 {[%emt 0:01:06]} 11. Be2 {[%emt 0:00:56]} dxc4 {[%emt 0:01:23]} 12. Bxc4 {[%emt 0:00:01]} e5 {[%emt 0:00:02] [#]} 13. d5 $146 {[%emt 0:00:42]} ({But not} 13. Qg6 $2 Be6 14. Bxe6 Rxe6 $19) ({Predecessor:} 13. dxe5 Nxe5 14. Nxe5 Rxe5 15. f4 Bf5 16. Qb3 Re7 17. g4 Ne4 18. O-O-O Nc5 19. Qa2 {0-1 Mardov,D (2414)-Antipov,M (2603) Saint Louis 1000 GM 2nd 2022 (1)}) 13... Na5 {[%emt 0:00:08]} ({Black should play} 13... b5 $15) 14. Ba2 $11 {[%emt 0:00:05] Strongly threatening b4.} b6 {[%emt 0:00:29]} 15. e4 {[%emt 0:00:22]} Nb7 {[%emt 0:00:22]} 16. O-O {[%emt 0:01:50]} Nd6 {[%emt 0:00:06]} 17. Rfe1 {[%emt 0:00:01]} Bb7 {[%emt 0:00:11]} 18. Rad1 {[%emt 0:00:57]} b5 {[%emt 0:01:37]} 19. Be3 {[%emt 0:01:21]} a5 {[%emt 0:00:14]} 20. Bc5 {[%emt 0:00:10]} Ba6 {[%emt 0:00:05]} 21. b4 {[%emt 0:00:07]} Nd7 {[%emt 0:00:04]} 22. Ne2 {[%emt 0:00:19]} axb4 {[%emt 0:00:20]} (22... Nxc5 $11 23. bxc5 Nb7) 23. axb4 {[%emt 0:00:24]} (23. Bxb4 $14 Nb6 24. Nd2) 23... Nc4 {[%emt 0:00:03]} (23... Nxc5 $1 $11 {remains equal.} 24. bxc5 Nb7) 24. Bxf8 $16 {[%emt 0:00:11]} Rxf8 {[%emt 0:00:01]} 25. Bxc4 {[%emt 0:00:04]} bxc4 {[%emt 0:00:01]} 26. Nc3 {[%emt 0:00:02]} Qe7 {[%emt 0:00:20]} 27. Rb1 {[%emt 0:00:15][%cal Bd1b1,Bb1a1,Ba1a6][%mdl 32]} Nb6 {[%emt 0:00:12]} 28. b5 {[%emt 0:00:36]} Bc8 {[%emt 0:00:07]} 29. Ra1 {[%emt 0:00:29]} Bd7 {[%emt 0:00:25]} 30. Ra6 {[%emt 0:00:08]} Qc5 {[%emt 0:00:47]} 31. Qb2 {[%emt 0:00:39]} f6 {[%emt 0:00:18]} 32. Rea1 {[%emt 0:00:02]} Rfb8 {[%emt 0:00:26]} 33. Nd2 {[%emt 0:00:29]} Bc8 {[%emt 0:00:10]} 34. Rxa8 {[%emt 0:00:04]} Rxa8 {[%emt 0:00:02]} 35. Rxa8 {[%emt 0:00:03]} Nxa8 {[%emt 0:00:00]} 36. Qa2 {[%emt 0:00:05]} (36. Na4 $14 c3 37. Qxc3 Qxb5 38. Qc2) 36... Nb6 $11 {[%emt 0:00:01]} 37. Qa7 {[%emt 0:00:01]} Kh7 {[%emt 0:00:07]} 38. Ndb1 {[%emt 0:00:21]} f5 {[%emt 0:00:02][%cal Bf6f5,Bf5e4,Be4d3][%mdl 32]} 39. Qa2 $2 {[%emt 0:00:04] [#]} (39. Nd2 $11) 39... fxe4 $19 {[%emt 0:00:02]} 40. Qe2 {[%emt 0:00:01]} Bf5 {[%emt 0:00:02]} (40... Nxd5 $2 41. Qxe4+ (41. Nxe4 Qb4 $17) 41... Kg8 42. Nxd5 $18) 41. Nd2 {[%emt 0:00:01]} Nxd5 {[%emt 0:00:03]} (41... Qd4 $19 42. Ndxe4 Bg6) 42. Nxd5 $17 {[%emt 0:00:01]} Qxd5 {[%emt 0:00:01]} 43. Nxc4 {[%emt 0:00:00]} Qd3 {[%emt 0:00:03] Inhibits Ne3.} 44. Qxd3 {[%emt 0:00:06]} (44. Qf1 $142) 44... exd3 {[%emt 0:00:00][%mdl 4096] Endgame KB-KN} 45. f3 $2 {[%emt 0:00:00] Loses the game.} (45. Kf1 $17) 45... Bd7 $19 {[%emt 0:00:03]} 46. Kf2 {[%emt 0:00:05]} Bxb5 {[%emt 0:00:00]} 47. Nd2 {[%emt 0:00:00]} Kg6 {[%emt 0:00:03]} 48. Ke3 {[%emt 0:00:00]} Kf5 {[%emt 0:00:00]} 49. g4+ $2 {[%emt 0:00:01]} (49. Ne4 Ke6 50. Kd2) 49... Ke6 {[%emt 0:00:01]} 50. Ke4 {[%emt 0:00:01]} c5 {[%emt 0:00:00]} 51. Nb1 {[%emt 0:00:04]} c4 {[%emt 0:00:03]} 52. Nc3 {[%emt 0:00:01]} Bc6+ {[%emt 0:00:01]} 53. Ke3 {[%emt 0:00:01]} Kd6 {[%emt 0:00:02]} 54. f4 {[%emt 0:00:04]} exf4+ {[%emt 0:00:02]} 55. Kxf4 {[%emt 0:00:01]} g5+ {[%emt 0:00:00]} 56. Ke3 {[%emt 0:00:01]} Ke5 {[%emt 0:00:03]} 57. Nb1 {[%emt 0:00:01]} Bg2 {[%emt 0:00:01]} 58. Nd2 {[%emt 0:00:02]} c3 {[%emt 0:00:04]} 59. Nc4+ {[%emt 0:00:01]} Kd5 {[%emt 0:00:00]} 60. Nb6+ {[%emt 0:00:00]} Kc6 {[%emt 0:00:06] [#] ( -> ...d2)} 61. Na4 {[%emt 0:00:05]} c2 {[%emt 0:00:01]} 62. Kd2 {[%emt 0:00:01]} Bxh3 {[%emt 0:00:00]} 63. Nb2 {[%emt 0:00:01]} Bxg4 {[%emt 0:00:01]} 64. Nxd3 {[%emt 0:00:00]} Kd6 {[%emt 0:00:07]} 65. Ke3 {[%emt 0:00:08]} Bf5 {[%emt 0:00:01]} 66. Nc1 {[%emt 0:00:00]} h5 {[%emt 0:00:00]} 67. Kf3 {[%emt 0:00:01]} h4 {[%emt 0:00:01]} 68. Nb3 {[%emt 0:00:03]} Ke5 {[%emt 0:00:01]} 69. Nc1 {[%emt 0:00:01]} g4+ {[%emt 0:00:01]} 70. Ke3 {[%emt 0:00:00]} g3 {[%emt 0:00:00]} 71. Kf3 {[%emt 0:00:00]} Be4+ {[%emt 0:00:01]} 72. Ke2 {[%emt 0:00:01]} h3 {[%emt 0:00:01]} 73. Ke1 {[%emt 0:00:01]} h2 {[%emt 0:00:00]} 74. Kf1 {[%emt 0:00:00]} h1=Q+ {[%emt 0:00:01]} 75. Ke2 {[%emt 0:00:00]} Qf3+ {[%emt 0:00:02]} 76. Kd2 {[%emt 0:00:01]} g2 {[%emt 0:00:02]} (76... Qd1+ $142 77. Kc3 Qxc1 78. Kb3 Qb1+ 79. Ka3 c1=Q+ 80. Ka4 Bc6+ 81. Ka5 Qb5#) 77. Ne2 {[%emt 0:00:01]} Qd3+ {[%emt 0:00:03]} 78. Kc1 {[%emt 0:00:01]} g1=Q+ {[%emt 0:00:03]} (78... Qd6 $142 79. Kb2 Qb4+ 80. Kc1 Qb1+ 81. Kd2 c1=Q+ {[%mdl 64] Promotion} 82. Nxc1 Qc2+ 83. Ke3 g1=Q#) 79. Nxg1 {[%emt 0:00:01]} Qe3+ {[%emt 0:00:00] Black mates.} 80. Kb2 {[%emt 0:00:01]} c1=Q+ {[%emt 0:00:00]} 81. Ka2 {[%emt 0:00:01]} Qea3# {[%emt 0:00:00] Weighted Error Value: White=0.72/Black=0.12 (very precise)} 0-1

[Event "CCT Airthings Masters Play-In 2023"]
[Site "Online"]
[Date "2023.02.03"]
[Round "1"]
[White "Sankalp_Gupta"]
[Black "Sam_ChessMood"]
[Result "0-1"]
[ECO "D00"]
[WhiteElo "2457"]
[BlackElo "2590"]
[Annotator "TA"]
[PlyCount "44"]
[EventDate "2023.02.03"]
[EventType "swiss"]
[EventCountry "NET"]
[SourceTitle "playchess.com"]
[Source "ChessBase"]
[SourceQuality "1"]
[TimeControl "600+2"]

{[%evp 9,44,0,0,0,-6,-14,0,0,-3,-64,-50,-58,-88,-115,-110,-106,-85,-89,-83,-93,-81,-81,0,0,0,0,0,-105,-99,-87,-61,-1164,-1154,-1133,-1127,-29988,-29989]} 1. d4 {[%emt 0:00:59]} Nf6 {[%emt 0:00:05]} 2. Nc3 {[%emt 0:00:01]} d5 {[%emt 0:00:02]} 3. Bf4 {[%emt 0:00:03]} c5 {[%emt 0:00:05]} 4. e4 {[%emt 0:00:07]} Nxe4 {[%emt 0:00:07]} 5. Nxe4 {[%emt 0:00:24]} dxe4 {[%emt 0:00:00]} 6. dxc5 {[%emt 0:00:02] D00: 1 d4 d5: Unusual lines.} Nd7 $5 {[%emt 0:00:01][%mdl 4] Leaves trodden paths.} 7. b4 {[%emt 0:00:14]} e5 {[%emt 0:00:55] Prevents Qd4.} 8. Be3 {[%emt 0:00:03] The position is equal.} Be7 {[%emt 0:00:08] [#]} 9. Qd5 $146 {[%emt 0:00:23]} ({White should try} 9. Bc4 $11) ({Predecessor:} 9. Bc4 O-O 10. Ne2 Kh8 11. O-O f5 12. Nc3 a5 13. a3 f4 14. Bd2 Nf6 15. Be1 axb4 16. axb4 Rxa1 17. Qxa1 f3 18. g3 Qd7 {0-1 Wall,T (2290)-Willow,J (2395) Newcastle EJCOA 4th 2022 (3)}) 9... O-O $15 {[%emt 0:00:19]} 10. Bc4 {[%emt 0:00:28]} Qc7 {[%emt 0:00:40]} 11. Qxe4 {[%emt 0:00:10]} Nf6 {[%emt 0:00:24]} 12. Qf3 {[%emt 0:00:01]} a5 {[%emt 0:00:47]} 13. c3 {[%emt 0:00:06]} axb4 {[%emt 0:00:24]} (13... Bg4 $6 14. Qg3 $11) 14. cxb4 {[%emt 0:00:00]} Ra4 $1 {[%emt 0:00:01]} (14... Bg4 $6 15. Qg3 $11) 15. a3 {[%emt 0:00:13]} Bg4 {[%emt 0:00:06]} (15... b6 $1 $17 {[%cal Rb6c5]} 16. Qd1 (16. cxb6 $2 {perishes.} Bxb4+ {[%mdl 64] Pin, Double Attack} 17. Kf1 Qxc4+ $19) 16... Ra8) 16. Qg3 $11 {[%emt 0:00:04]} Rfa8 {[%emt 0:00:02] Threatens to win with ...Rxb4.} 17. Rc1 {[%emt 0:00:51]} Rxa3 {[%emt 0:01:05][%cal Ob7b5]} 18. h3 {[%emt 0:00:08] [#]} (18. Nf3 $11 {keeps the balance.}) 18... Bh5 $1 $36 {[%emt 0:00:35][%mdl 2048] White must now prevent ...Ne4. Black has strong initiative.} 19. Nf3 {[%emt 0:00:05]} Ne4 {[%emt 0:00:11]} ({Much weaker is} 19... Bxf3 $6 20. Qxf3 R8a4 21. O-O $11) 20. Qxe5 {[%emt 0:00:41][%mdl 8192] [#]} (20. Qh2 $15) 20... Rxe3+ $1 $19 {[%emt 0:00:14][%mdl 512]} 21. fxe3 {[%emt 0:00:03] [#]} Bh4+ $1 {[%emt 0:00:04][%mdl 576] Deflection} 22. Kf1 {[%emt 0:00:21] [#]} (22. Nxh4 Qxe5) 22... Nd2+ $1 {[%emt 0:00:03][%mdl 576] Double Attack. A superb game by Sam_ChessMood.   Weighted Error Value: White=0.80/Black=0.08 (flawless)} 0-1

[Event "CCT Airthings Masters Play-In 2023"]
[Site "Online"]
[Date "2023.02.03"]
[Round "1"]
[White "titan013"]
[Black "GMBenjaminBok"]
[Result "*"]
[ECO "B51"]
[WhiteElo "2453"]
[BlackElo "2631"]
[Annotator "NA"]
[PlyCount "28"]
[EventDate "2023.02.03"]
[EventType "swiss"]
[EventCountry "NET"]
[SourceTitle "playchess.com"]
[Source "ChessBase"]
[SourceQuality "1"]
[TimeControl "600+2"]

1. e4 {[%emt 0:03:53]} c5 {[%emt 0:00:06]} 2. Nf3 {[%emt 0:00:02]} d6 {[%emt 0:00:01]} 3. Bb5+ {[%emt 0:00:01]} Nd7 {[%emt 0:00:01]} 4. d4 {[%emt 0:00:01]} cxd4 {[%emt 0:00:01]} 5. Qxd4 {[%emt 0:00:00]} a6 {[%emt 0:00:01]} 6. Bxd7+ {[%emt 0:00:01]} Bxd7 {[%emt 0:00:00]} 7. O-O {[%emt 0:00:01]} Nf6 {[%emt 0:00:01]} 8. c4 {[%emt 0:00:02]} g6 {[%emt 0:00:01]} 9. Nc3 {[%emt 0:00:01]} Bg7 {[%emt 0:00:01]} 10. Bg5 {[%emt 0:00:02]} O-O {[%emt 0:00:02]} 11. Qd2 {[%emt 0:00:01]} b5 {[%emt 0:01:27]} 12. cxb5 {[%emt 0:00:05]} axb5 {[%emt 0:00:01]} 13. a3 {[%emt 0:00:18]} Bc6 {[%emt 0:00:59]} 14. Rfe1 {[%emt 0:00:03]} Qb6 {[%emt 0:00:07]} *

[Event "CCT Airthings Masters Play-In 2023"]
[Site "Online"]
[Date "2023.02.03"]
[Round "1"]
[White "Denis_Makhnyov"]
[Black "Arhimow, Mohamed Salem"]
[Result "*"]
[ECO "D72"]
[WhiteElo "2447"]
[BlackElo "1567"]
[Annotator "TA"]
[PlyCount "31"]
[EventDate "2023.02.03"]
[EventType "swiss"]
[EventCountry "NET"]
[SourceTitle "playchess.com"]
[Source "ChessBase"]
[SourceQuality "1"]
[TimeControl "600+2"]

{[%evp 22,31,11,0,8,0,2,0,0,0,2,0]} 1. d4 {[%emt 0:00:04] Krasenkow,Michal} Nf6 {[%emt 0:00:08]} 2. c4 {[%emt 0:00:01]} g6 {[%emt 0:00:03]} 3. g3 {[%emt 0:00:05]} Bg7 {[%emt 0:00:03]} 4. Bg2 {[%emt 0:00:00]} d5 {[%emt 0:00:02]} 5. cxd5 {[%emt 0:00:02]} Nxd5 {[%emt 0:00:00]} 6. e4 {[%emt 0:00:00]} Nb6 {[%emt 0:00:01]} 7. Ne2 {[%emt 0:00:01]} c5 {[%emt 0:00:01]} 8. d5 {[%emt 0:00:01]} O-O {[%emt 0:00:01]} 9. O-O {[%emt 0:00:01]} e6 {[%emt 0:00:01]} 10. Nec3 {[%emt 0:00:01]} Na6 {[%emt 0:00:06] 10...exd5 is the hot move.} 11. a4 {[%emt 0:00:38]} exd5 {[%emt 0:00:12]} 12. exd5 {[%emt 0:00:01] The position is equal.} Nc4 {[%emt 0:00:01] D72: Fianchetto Grünfeld: 5 cxd5 Nxd5 6 e4 Nb6 (without Nf3).} 13. Na3 {[%emt 0:01:55]} Ne5 {[%emt 0:00:02]} 14. Be3 {[%emt 0:00:15]} Bg4 {[%emt 0:00:01]} 15. Qb3 {[%emt 0:00:01] [#]} b6 $146 {[%emt 0:01:11]} ({Predecessor:} 15... Nf3+ 16. Kh1 Qd7 17. h3 Nd4 18. Bxd4 cxd4 19. hxg4 dxc3 20. bxc3 Rac8 21. Nb5 Nc5 {0-1 So,W (2673)-Li,C (2649) Tata Steel-B 73rd 2011 (9)}) 16. Ne4 {[%emt 0:01:53] Not much happened in this game.   Weighted Error Value: White=0.03 (flawless) /Black=0.02 (flawless)} *

[Event "CCT Airthings Masters Play-In 2023"]
[Site "Online"]
[Date "2023.02.03"]
[Round "1"]
[White "penguingm1"]
[Black "viviania"]
[Result "*"]
[ECO "E39"]
[WhiteElo "2444"]
[BlackElo "2615"]
[Annotator "TA"]
[PlyCount "44"]
[EventDate "2023.02.03"]
[EventType "swiss"]
[EventCountry "NET"]
[SourceTitle "playchess.com"]
[Source "ChessBase"]
[SourceQuality "1"]
[TimeControl "600+2"]

{[%evp 16,31,4,0,12,7,16,13,17,7,9,7,14,0,0,3,1,-4]} 1. d4 {[%emt 0:00:04]} Nf6 {[%emt 0:00:05]} 2. c4 {[%emt 0:00:02]} e6 {[%emt 0:00:01]} 3. Nc3 {[%emt 0:00:02]} Bb4 {[%emt 0:00:05]} 4. Qc2 {[%emt 0:00:01]} O-O {[%emt 0:00:02]} 5. Nf3 {[%emt 0:00:01]} c5 {[%emt 0:00:02]} 6. dxc5 {[%emt 0:00:01]} Na6 {[%emt 0:00:01][%cal Bb8a6,Ba6c5,Bc5e4][%mdl 32]} 7. g3 {[%emt 0:00:01]} Nxc5 {[%emt 0:00:01]} 8. Bg2 {[%emt 0:00:00]} Nce4 {[%emt 0:00:02]} 9. O-O {[%emt 0:00:01] The position is equal.} Bxc3 {[%emt 0:00:01] E39: Nimzo-Indian: Classical: 4...c5 5 dxc5 0-0.} 10. bxc3 {[%emt 0:00:00]} Qc7 {[%emt 0:00:01]} 11. Nd4 {[%emt 0:01:54]} d5 {[%emt 0:00:03]} 12. cxd5 {[%emt 0:00:00]} exd5 {[%emt 0:00:01]} 13. Bf4 {[%emt 0:02:12]} Qc5 {[%emt 0:00:03]} 14. Rfc1 {[%emt 0:00:13]} Bd7 {[%emt 0:00:30]} 15. Qb2 $1 {[%emt 0:01:43]} b6 {[%emt 0:00:07]} 16. Be3 {[%emt 0:00:03] [#] A rather calm draw.   Weighted Error Value: White=0.02 (flawless) /Black=0.02 (flawless)} {Predecessor:} Rfe8 $146 17. Nf3 Qc7 18. Bd4 Rac8 19. a4 h5 20. Qa2 Be6 21. Qb1 Bd7 22. e3 Ng4 {½-½ Oen,G (2226)-Mondino,V (2237) WZ-ch M/19/07 email 2019} *